bitfinex-derivatives/quotes_ETHF0:USTF0_20251006
["timestamp","ask_amount","ask_price","bid_price","bid_amount"]
[1759719387676,0.7957,4539.6,4539.5,0.6816]
[1759719388075,0.464,4539.6,4539.5,0.9088]
[1759719388879,0.464,4539.6,4539.5,0.6816]
[1759719389272,0.464,4539.6,4539.5,0.9088]
[1759719390579,0.7957,4539.6,4539.5,0.9088]
[1759719391076,0.464,4539.6,4539.5,0.9088]
[1759719394183,0.2207,4539.6,4539.5,0.9088]
[1759719394481,0.4533,4539.6,4539.5,0.9088]
[1759719395178,0.93111523,4540.4,4540.0,0.1355]
[1759719395381,0.93111523,4540.4,4540.3,0.8015]
[1759719395585,2.10079334,4540.4,4540.3,0.8015]
[1759719397080,2.42649334,4540.4,4540.3,0.5738]
[1759719397388,2.20349334,4540.4,4540.3,0.5738]
[1759719397583,2.42649334,4540.4,4540.3,0.3381]
[1759719397783,0.7759,4540.2,4540.1,0.3381]
[1759719398183,0.7759,4540.2,4540.1,0.5738]
[1759719398386,0.4502,4540.2,4540.1,0.8015]
[1759719398585,0.6732,4540.2,4540.1,0.8015]
[1759719399389,0.223,4540.2,4540.1,0.8015]
[1759719399581,0.93111523,4540.4,4540.2,0.3381]
[1759719399776,0.223,4540.3,4540.2,0.8015]
[1759719400185,0.4406,4540.3,4540.2,0.8015]
[1759719400891,0.2176,4540.3,4540.2,0.8015]
[1759719401089,0.4406,4540.3,4540.2,0.8015]
[1759719402590,0.2176,4540.3,4540.2,0.8015]
[1759719403088,0.71409146,4540.3,4540.2,0.8015]
[1759719405391,0.93709146,4540.3,4540.2,0.8015]
[1759719408987,1.71354722,4540.3,4540.2,0.8015]
[1759719409594,1.49054722,4540.3,4540.2,0.8015]
[1759719409898,1.71354722,4540.3,4540.2,0.8015]
[1759719413492,0.49649146,4540.3,4540.2,0.8015]
[1759719413893,0.49649146,4540.3,4540.2,5.8015]
[1759719414096,1.27294722,4540.3,4540.2,0.8015]
[1759719414297,1.01085576,4540.3,4540.2,4.0093]
[1759719414997,0.77645576,4540.3,4540.2,4.0093]
[1759719415197,1.01085576,4540.6,4540.5,0.9316]
[1759719415403,1.72794624,4540.6,4540.5,0.9316]
[1759719416098,0.95149048,4540.6,4540.5,0.9316]
[1759719416303,1.72794624,4540.6,4540.5,0.9316]
[1759719417608,0.49409048,4540.6,4540.5,0.9316]
[1759719417793,3.4422,4541.1,4541.0,0.9316]
[1759719418001,4.71252325,4541.1,4541.0,0.9316]
[1759719418306,1.72772325,4541.1,4541.0,0.9316]
[1759719418506,1.95072325,4541.1,4541.0,0.9316]
[1759719418807,1.49332325,4541.1,4541.0,0.9316]
[1759719419503,1.72772325,4541.1,4541.0,0.9316]
[1759719419804,1.50472325,4541.1,4541.0,0.9316]
[1759719420005,1.72772325,4541.1,4541.0,0.9316]
[1759719420299,0.49386749,4541.1,4541.0,0.9316]
[1759719420497,0.00201403,4541.5,4541.4,1.19569]
[1759719420700,0.95203729,4541.5,4541.4,1.19569]
[1759719420899,2.27119305,4541.5,4541.4,0.3331]
[1759719421407,2.27119305,4541.5,4541.4,0.5605]
[1759719422005,2.04819305,4541.5,4541.4,0.5605]
[1759719422203,2.27119305,4541.5,4541.4,0.5605]
[1759719422507,2.04819305,4541.5,4541.4,0.5605]
[1759719422697,2.27119305,4541.5,4541.4,0.5605]
[1759719423104,1.77856979,4541.5,4541.4,0.5605]
[1759719425401,6.12036979,4541.5,4540.8,3.2078]
[1759719425606,6.12036979,4541.5,4540.6,0.5605]
[1759719425607,1.17335,4540.7,4540.6,0.5605]
[1759719426709,0.85365,4540.7,4540.6,0.7995]
[1759719427296,1.17335,4540.7,4540.6,0.5605]
[1759719427703,1.17335,4540.7,4540.6,0.3331]
[1759719428103,1.17339,4540.3,4540.2,3.2078]
[1759719428407,1.63014576,4540.3,4540.2,3.6742]
[1759719428802,1.63014576,4540.3,4540.2,4.0073]
[1759719429906,1.40714576,4540.3,4540.2,4.0073]
[1759719430104,1.63014576,4540.3,4540.2,4.0073]
[1759719430505,1.63014576,4540.3,4540.2,3.7683]
[1759719430706,1.94984576,4540.3,4540.2,3.7683]
[1759719431607,1.94984576,4540.3,4540.2,4.0073]
[1759719431608,1.63014576,4540.3,4540.2,4.0073]
[1759719432404,0.77645576,4540.3,4540.2,4.4036]
[1759719432605,1.17272576,4540.6,4540.3,0.7995]
[1759719432811,1.39572576,4540.6,4540.5,0.9316]
[1759719433011,1.63012576,4540.6,4540.5,0.9316]
[1759719433513,1.23385576,4540.6,4540.5,0.9316]
[1759719434409,1.77655576,4540.6,4540.5,0.6926]
[1759719434609,1.77655576,4540.6,4540.2,3.2078]
[1759719434610,1.17339,4540.3,4540.2,3.7683]
[1759719434803,1.94984576,4540.3,4540.2,3.7683]
[1759719435614,2.17284576,4540.3,4540.2,3.2078]
[1759719436213,0.7771,4539.7,4539.6,0.3331]
[1759719436413,0.4574,4539.3,4539.2,0.2274]
[1759719436605,1.55355576,4539.3,4539.2,0.2274]
[1759719436909,1.55355576,4539.3,4539.2,0.3331]
[1759719437309,0.4574,4539.1,4539.0,0.33531341]
[1759719437616,0.7771,4539.1,4539.0,0.00221341]
[1759719437816,1.26943869,4539.1,4539.0,0.00221341]
[1759719438320,0.7771,4539.1,4539.0,0.00221341]
[1759719438710,0.2278,4538.2,4538.1,3.6643]
[1759719438911,0.223,4538.5,4538.1,3.6643]
[1759719439314,1.07645,4538.5,4538.4,0.4565]
[1759719439509,1.07645,4538.5,4538.4,0.7864]
[1759719439818,1.07882095,4538.5,4538.4,0.78895836]
[1759719440608,1.38662095,4538.5,4538.4,0.33245836]
[1759719440814,1.38662095,4538.5,4538.4,0.00255836]
[1759719447718,1.38662095,4538.5,4538.4,0.33245836]
[1759719448019,1.07882095,4538.5,4538.4,0.56665836]
[1759719448415,0.00237095,4538.5,4538.4,0.78895836]
[1759719448616,0.77645576,4539.5,4538.6,0.39643]
[1759719448821,0.62418,4539.3,4539.2,0.7864]
[1759719449023,0.85338,4539.3,4539.2,0.7864]
[1759719449720,0.22976949,4539.3,4539.2,0.7864]
[1759719450420,0.00196949,4539.3,4539.2,0.7864]
[1759719453917,1.13881,4538.9,4538.8,3.4402]
[1759719454222,1.13881,4538.9,4538.4,0.00255836]
[1759719454223,0.39644,4538.6,4538.4,0.00255836]
[1759719454524,1.91529576,4538.6,4538.5,0.3251]
[1759719454922,1.91529576,4538.6,4538.4,0.00255836]
[1759719455118,0.7424,4538.5,4538.4,0.00255836]
[1759719455519,0.7424,4538.5,4538.4,0.32765836]
[1759719456424,0.9654,4538.5,4538.4,0.32765836]
[1759719459423,0.9654,4538.5,4538.4,0.56005836]
[1759719459615,1.43985576,4538.5,4538.4,0.77575836]
[1759719459822,1.21685576,4538.5,4538.4,0.77575836]
[1759719460023,3.20976949,4539.3,4539.2,0.2324]
[1759719460325,4.64962525,4539.3,4539.2,0.7732]
[1759719461220,5.14171193,4539.3,4539.2,0.7732]
[1759719462224,5.44371193,4539.3,4539.2,0.3251]
[1759719462424,0.7424,4539.1,4539.0,0.3251]
[1759719463218,0.7424,4539.1,4538.5,0.1315]
[1759719463421,0.302,4538.5,4538.4,0.00255836]
[1759719463727,1.15597905,4538.5,4538.4,0.56005836]
[1759719463928,1.15597905,4538.5,4538.4,0.77575836]
[1759719465029,1.45797905,4538.5,4538.4,0.77575836]
[1759719465230,1.45797905,4538.5,4538.4,0.56005836]
[1759719467136,1.45797905,4538.5,4538.4,0.00255836]
[1759719467437,1.45797905,4538.5,4538.4,0.32765836]
[1759719468536,1.45797905,4538.5,4538.4,0.00255836]
[1759719469139,2.39062925,4538.5,4538.4,0.00255836]
[1759719470336,2.39154553,4538.5,4538.4,0.00255836]
[1759719471037,2.50464553,4538.5,4538.4,0.00255836]
[1759719473043,2.39154553,4538.5,4538.4,0.32855836]
[1759719475448,2.39154553,4538.5,4538.4,0.00255836]
[1759719476146,2.39154553,4538.5,4538.4,0.32855836]
[1759719477744,2.16854553,4538.5,4538.4,0.55355836]
[1759719478048,2.39154553,4538.5,4538.4,0.55355836]
[1759719479554,2.39154553,4538.5,4538.4,0.32855836]
[1759719479853,2.16854553,4538.5,4538.4,0.32855836]
[1759719480052,2.39154553,4538.5,4538.4,0.32855836]
[1759719480649,2.16854553,4538.5,4538.4,0.32855836]
[1759719480849,2.39154553,4538.5,4538.4,0.32855836]
[1759719481646,0.49349533,4538.5,4538.4,0.76685836]
[1759719481845,3.2078,4539.2,4539.1,1.16069]
[1759719482054,3.2078,4539.2,4539.1,0.7643]
[1759719484555,3.4308,4539.2,4539.1,0.7643]
[1759719485251,3.6468,4539.2,4539.1,0.7643]
[1759719485651,3.8689,4539.2,4539.1,0.7643]
[1759719486854,0.6611,4539.2,4539.1,0.7643]
[1759719488662,0.6611,4539.2,4538.6,0.39643]
[1759719488663,0.9573,4539.2,4538.6,0.326]
[1759719488861,1.7671802,4538.7,4538.6,0.7643]
[1759719491560,0.216,4538.7,4538.6,0.7643]
[1759719491757,0.223,4538.9,4538.7,0.72242]
[1759719491955,0.00196949,4539.3,4539.2,0.7643]
[1759719495765,0.00196949,4539.3,4539.2,1.16068]
[1759719496161,0.00196949,4539.3,4539.2,0.7643]
[1759719499171,0.61093949,4539.3,4539.2,0.7643]
[1759719499468,1.34903949,4539.3,4539.2,0.326]
[1759719499664,1.83584459,4539.3,4539.2,0.326]
[1759719501766,1.12409,4539.1,4539.0,0.3294]
[1759719501966,2.0567402,4539.1,4539.0,0.3294]
[1759719502368,2.0567402,4539.1,4538.5,0.1251]
[1759719502369,0.5151,4538.7,4538.6,0.5532]
[1759719502568,0.7277,4538.7,4538.6,0.5532]
[1759719502769,0.4389,4538.7,4538.6,0.7796]
[1759719504566,0.00196949,4539.3,4539.0,0.1273]
[1759719504773,1.1452502,4539.1,4539.0,0.9069]
[1759719505067,2.14740457,4539.1,4539.0,0.3294]
[1759719505371,2.14740457,4539.1,4538.6,0.7796]
[1759719505372,0.4389,4538.7,4538.6,0.7796]
[1759719506972,0.9507,4538.7,4538.6,0.7796]
[1759719507374,0.6619,4538.7,4538.6,0.7796]
[1759719507870,0.4389,4538.7,4538.6,0.7796]
[1759719508076,3.42236949,4539.3,4539.2,0.7796]
[1759719508280,0.48946988,4539.3,4539.2,0.7796]
[1759719509270,0.70206988,4539.3,4539.2,0.7796]
[1759719509567,2.14982008,4539.3,4539.2,0.7796]
[1759719509766,2.14982008,4539.3,4539.2,0.5532]
[1759719509967,2.14982008,4539.3,4539.2,0.3294]
[1759719510371,2.14982008,4539.3,4539.0,0.3294]
[1759719510372,0.7277,4539.1,4539.0,0.3294]
[1759719510566,0.7277,4539.1,4538.5,3.3329]
[1759719510567,0.99930039,4539.1,4538.5,3.3329]
[1759719510773,0.2126,4538.6,4538.5,4.1125]
[1759719512678,0.7277,4538.6,4538.5,3.6623]
[1759719513079,0.4389,4538.6,4538.5,4.1125]
[1759719514480,0.92554329,4538.6,4538.5,4.1125]
[1759719517182,0.69924329,4538.6,4538.5,4.1125]
[1759719517376,0.48664329,4538.6,4538.5,4.1125]
[1759719519181,0.223,4539.0,4538.9,0.776]
[1759719519378,0.7094206,4539.0,4538.9,0.776]
[1759719520884,0.4864206,4539.0,4538.9,0.776]
[1759719523080,0.9140206,4539.0,4538.9,0.776]
[1759719523783,0.1449206,4539.0,4538.9,0.776]
[1759719524089,0.00196949,4539.3,4539.2,1.17238]
[1759719524288,0.00196949,4539.3,4539.2,1.39538]
[1759719525995,0.00196949,4539.3,4539.2,0.999]
[1759719529589,0.00196949,4539.3,4539.2,0.776]
[1759719529798,0.55906949,4539.3,4539.2,0.776]
[1759719532894,0.77866949,4539.3,4539.2,0.776]
[1759719536602,0.77866949,4539.3,4539.2,0.2143]
[1759719536803,0.39638,4539.2,4539.0,3.2078]
[1759719537101,0.7767,4539.1,4539.0,3.9877]
[1759719540208,0.5571,4539.1,4539.0,4.1208]
[1759719540605,0.5571,4539.1,4539.0,3.9877]
[1759719541307,0.5571,4539.1,4539.0,4.1208]
[1759719542009,0.77672482,4539.2,4539.0,4.1867]
[1759719542208,0.77672482,4539.2,4539.1,0.7799]
[1759719542609,1.33382482,4539.2,4539.1,0.7799]
[1759719543298,1.11662482,4539.2,4539.1,0.7799]
[1759719543504,0.77672482,4539.2,4539.1,0.7799]
[1759719544509,1.33382482,4539.2,4539.1,0.7799]
[1759719545110,1.55342482,4539.2,4539.0,3.2078]
[1759719545309,1.17312,4538.9,4538.8,0.2246]
[1759719545609,1.94984482,4538.9,4538.8,0.2246]
[1759719546810,0.39643,4538.7,4538.6,0.5551]
[1759719547014,0.7767,4538.7,4538.6,0.7799]
[1759719547218,0.5571,4538.7,4538.6,0.7799]
[1759719547510,0.77672482,4538.9,4538.8,0.7799]
[1759719547820,3.54966949,4539.3,4539.2,0.7799]
[1759719547821,0.55906949,4539.3,4539.2,0.7799]
[1759719548010,1.03757278,4539.3,4539.2,0.7799]
[1759719548412,1.8142976,4539.3,4539.2,0.7799]
[1759719548620,2.0338976,4539.3,4539.2,0.7799]
[1759719549114,1.6939976,4539.3,4538.8,3.5383]
[1759719549314,1.55342482,4539.0,4538.9,0.7799]
[1759719549521,2.03192811,4539.0,4538.9,0.7799]
[1759719551417,2.16122811,4539.0,4538.9,0.7799]
[1759719551622,0.83321,4538.9,4538.8,3.2078]
[1759719551921,0.83321,4538.9,4538.8,3.4324]
[1759719551922,1.17311,4538.9,4538.8,3.4324]
[1759719553319,1.17311,4538.9,4538.8,0.2246]
[1759719556123,1.17311,4538.9,4538.8,0.5551]
[1759719557026,1.17311,4538.9,4538.8,0.2246]
[1759719557232,1.17311,4538.9,4538.8,0.5551]
[1759719557422,1.17311,4538.9,4538.8,0.7799]
[1759719558923,0.7767,4538.9,4538.8,0.7799]
[1759719559125,0.94339,4539.1,4539.0,0.7714]
[1759719559428,1.86930738,4539.1,4539.0,0.7714]
[1759719561833,1.24991738,4539.1,4539.0,0.7714]
[1759719562124,0.47871738,4539.1,4539.0,0.9051]
[1759719562629,0.47871738,4539.1,4539.0,0.7714]
[1759719562630,1.24991738,4539.1,4539.0,0.7714]
[1759719567029,0.47871738,4539.1,4539.0,0.9051]
[1759719567233,1.02571738,4539.1,4539.0,0.9051]
[1759719568732,1.02571738,4539.1,4539.0,0.7714]
[1759719570128,1.24991738,4539.1,4539.0,0.7714]
[1759719573331,0.2174,4538.8,4538.7,0.3347]
[1759719573531,0.7389,4538.8,4538.7,0.5402]
[1759719573829,0.7389,4538.8,4538.7,0.7499]
[1759719574231,0.82254,4538.5,4538.4,0.54275836]
[1759719574437,1.13534,4538.5,4538.4,0.54275836]
[1759719574638,0.7389,4538.5,4538.4,0.54275836]
[1759719575241,0.8648,4538.5,4538.4,0.00255836]
[1759719575444,1.34483138,4538.5,4538.4,0.00255836]
[1759719575636,6.34483138,4538.5,4538.4,0.00255836]
[1759719576437,9.55263138,4538.5,4538.4,0.00255836]
[1759719576936,9.77563138,4538.5,4538.4,0.00255836]
[1759719582333,4.77563138,4538.5,4538.4,0.00255836]
[1759719584149,4.55263138,4538.5,4538.4,0.00255836]
[1759719584350,4.77563138,4538.5,4538.4,0.00255836]
[1759719587454,3.91083138,4538.5,4538.4,0.75245836]
[1759719587648,4.43743138,4538.5,4538.4,0.75245836]
[1759719588553,3.68783138,4538.5,4538.4,1.14890836]
[1759719588752,0.3092,4539.0,4538.9,0.4372]
[1759719588953,1.01087516,4539.0,4538.9,0.7757]
[1759719589149,0.47867516,4539.0,4538.9,0.7757]
[1759719589455,1.08789431,4539.3,4539.1,0.4372]
[1759719589749,1.22685975,4539.2,4539.1,0.7757]
[1759719590448,0.7482,4539.2,4539.1,0.7757]
[1759719591851,0.5252,4539.2,4539.1,0.7757]
[1759719592052,0.216,4539.2,4539.1,0.7757]
[1759719592253,1.17507431,4539.3,4539.2,0.3385]
[1759719592254,1.39807431,4539.3,4539.2,0.3385]
[1759719592554,2.40188847,4539.3,4539.2,0.7757]
[1759719593051,0.39641,4538.9,4538.8,0.56]
[1759719593349,0.39641,4538.9,4538.8,0.7757]
[1759719593350,1.14921,4538.9,4538.8,0.7757]
[1759719594555,0.5252,4538.9,4538.8,0.7757]
[1759719595659,0.223,4539.1,4538.8,1.17211]
[1759719595848,0.5322,4539.1,4538.8,0.83361]
[1759719596054,0.7482,4539.1,4539.0,0.7757]
[1759719596355,3.2078,4540.0,4539.1,0.39639]
[1759719596557,1.18781507,4540.3,4540.1,0.8335]
[1759719596745,3.2078,4541.0,4539.9,4.140095]
[1759719596746,0.3092,4540.4,4540.3,0.39629]
[1759719597151,0.05383479,4541.0,4540.3,5.0]
[1759719597362,0.1255,4541.5,4541.3,0.39619]
[1759719597654,0.34376839,4541.5,4541.4,4.140095]
[1759719598254,0.12776839,4541.5,4541.4,4.140095]
[1759719598451,0.34376839,4541.5,4541.4,3.2078]
[1759719598759,0.34376839,4541.5,4540.8,3.4308]
[1759719598760,0.4436,4540.9,4540.8,3.4308]
[1759719598970,0.4436,4540.9,4540.8,3.2078]
[1759719599255,0.4436,4540.9,4539.2,1.7597824]
[1759719599256,0.1255,4540.0,4539.7,3.2078]
[1759719599459,0.6507,4540.0,4539.9,0.39632]
[1759719600657,0.7528,4539.8,4539.7,3.2078]
[1759719600865,0.1255,4539.5,4539.2,3.2078]
[1759719601066,0.7528,4539.3,4539.2,3.2078]
[1759719601259,1.14917,4539.3,4539.2,3.2078]
[1759719601462,0.7528,4539.3,4539.2,3.2078]
[1759719601658,0.39638,4539.2,4538.6,3.2078]
[1759719601854,0.7528,4538.7,4538.6,3.4308]
[1759719602055,0.3092,4538.7,4538.6,3.4308]
[1759719602658,0.5252,4538.7,4538.6,3.4308]
[1759719603157,0.3092,4538.7,4538.6,3.4308]
[1759719603357,0.3092,4538.7,4538.6,8.4308]
[1759719603965,0.5252,4538.7,4538.6,3.4308]
[1759719604461,0.5252,4538.7,4538.6,3.2078]
[1759719604462,0.7528,4538.7,4538.6,3.2078]
[1759719604658,0.1255,4538.5,4538.4,0.00255836]
[1759719604854,0.8783,4538.5,4538.4,0.00255836]
[1759719605063,0.4347,4538.5,4538.4,0.00255836]
[1759719605254,0.4347,4538.5,4538.4,0.62200836]
[1759719605562,0.4347,4538.5,4538.4,5.62200836]
[1759719606255,0.6507,4538.5,4538.4,5.62200836]
[1759719606748,0.8783,4538.5,4538.4,0.62200836]
[1759719607256,0.8783,4538.5,4538.4,0.22555836]
[1759719607849,0.4347,4538.5,4538.4,0.22555836]
[1759719608064,0.1255,4539.0,4538.9,0.39641]
[1759719608262,0.1255,4539.0,4538.9,0.223]
[1759719608263,0.5691,4539.0,4538.9,0.223]
[1759719609161,0.3415,4539.0,4538.9,0.223]
[1759719609562,0.5691,4539.0,4538.9,0.223]
[1759719610064,0.8783,4539.0,4538.9,0.223]
[1759719610454,0.7528,4538.8,4538.7,3.2078]
[1759719610765,0.7528,4538.8,4538.7,3.4318]
[1759719611062,1.14922,4538.8,4538.7,3.2078]
[1759719611367,0.5691,4538.5,4538.4,0.00255836]
[1759719611565,0.8783,4538.5,4538.4,0.00255836]
[1759719611758,0.8783,4538.5,4537.7,3.2078]
[1759719611759,0.7528,4537.8,4537.7,3.2078]
[1759719612163,0.3092,4537.3,4537.2,3.2078]
[1759719612362,0.7528,4537.3,4537.2,3.2078]
[1759719612662,0.75504065,4537.3,4537.2,3.20946264]
[1759719614966,0.52744065,4537.3,4537.2,3.43346264]
[1759719615959,0.75504065,4537.3,4537.2,3.43346264]
[1759719617571,0.52744065,4537.3,4537.2,3.43346264]
[1759719617965,0.31144065,4537.3,4537.2,3.43346264]
[1759719618665,0.00224065,4537.3,4537.2,8.43346264]
[1759719618859,0.1255,4538.0,4537.9,0.3965]
[1759719619057,0.6706,4538.0,4537.9,3.8283]
[1759719619269,0.6706,4538.0,4537.9,3.4318]
[1759719619466,0.8891,4538.0,4537.9,3.2078]
[1759719619670,0.8891,4538.0,4537.9,3.4318]
[1759719619871,0.89180887,4538.0,4537.9,3.4318]
[1759719620274,0.45780887,4538.0,4537.9,3.4318]
[1759719620776,8.87e-06,4538.0,4537.9,8.4318]
[1759719621766,0.45600887,4538.0,4537.9,8.2078]
[1759719621969,0.45600887,4538.0,4537.9,8.4318]
[1759719622563,8.87e-06,4538.0,4537.9,8.4318]
[1759719623269,0.2155,4539.4,4539.3,0.82947]
[1759719623458,0.434,4539.4,4539.2,0.224]
[1759719623662,0.83037,4539.3,4539.2,0.224]
[1759719623861,0.434,4539.3,4539.2,0.224]
[1759719624070,0.43669431,4539.3,4539.2,0.4296]
[1759719624471,0.43669431,4539.3,4539.2,0.224]
[1759719625164,0.76629431,4539.3,4539.2,0.4296]
[1759719625861,0.76629431,4539.3,4539.2,0.6571]
[1759719626066,0.00269431,4539.3,4539.2,0.8223]
[1759719627166,0.00269431,4539.3,4539.2,0.5983]
[1759719627370,0.54779431,4539.3,4539.2,0.6571]
[1759719627668,0.6715,4539.0,4538.9,0.60201]
[1759719627873,0.89,4539.0,4538.9,0.82601]
[1759719628067,0.89,4539.0,4538.9,0.60201]
[1759719628269,0.89,4539.0,4538.9,1.05351]
[1759719628867,0.00269431,4539.3,4539.2,0.39638]
[1759719629062,0.54779431,4539.3,4539.2,1.05348]
[1759719629263,0.00269431,4539.3,4539.2,1.21868]
[1759719630471,0.00269431,4539.3,4539.2,0.5983]
[1759719630678,0.6715,4539.0,4538.8,1.17680446]
[1759719630870,0.89,4538.5,4538.4,1.17680446]
[1759719631069,0.89,4538.5,4538.4,0.4296]
[1759719631874,0.3296,4538.4,4538.3,3.2078]
[1759719632084,0.7636,4538.4,4538.3,3.4318]
[1759719632573,0.7636,4538.4,4538.3,3.6374]
[1759719632770,0.5451,4538.4,4538.3,3.8649]
[1759719633075,0.3296,4538.9,4538.8,0.82952]
[1759719633274,0.3296,4538.9,4538.8,1.05352]
[1759719633571,0.5355,4538.9,4538.8,1.05352]
[1759719634565,0.20859431,4539.3,4539.2,0.83408]
[1759719635075,0.43049431,4539.3,4539.2,0.83408]
[1759719635274,0.52809431,4539.3,4539.2,0.83408]
[1759719635865,0.32219431,4539.3,4539.2,0.83408]
[1759719636069,0.74999431,4539.3,4539.2,0.4372]
[1759719636272,0.74999431,4539.3,4539.2,0.224]
[1759719636675,0.74999431,4539.3,4539.2,0.4372]
[1759719638771,0.74999431,4539.3,4539.2,0.6617]
[1759719640671,0.52809431,4539.3,4539.2,0.6617]
[1759719640877,0.32219431,4539.3,4539.2,0.8267]
[1759719641081,0.74999431,4539.3,4539.2,0.6617]
[1759719643082,0.32219431,4539.3,4539.2,0.8267]
[1759719643578,0.32219431,4539.3,4539.2,0.4372]
[1759719643579,0.74999431,4539.3,4539.2,0.4372]
[1759719643779,0.74999431,4539.3,4539.2,0.224]
[1759719643980,0.74999431,4539.3,4539.2,0.4372]
[1759719645381,0.74999431,4539.3,4539.2,0.224]
[1759719646369,0.74999431,4539.3,4539.2,0.4372]
[1759719647080,0.74999431,4539.3,4539.2,0.6617]
[1759719650575,0.32219431,4539.3,4539.2,0.8271]
[1759719650888,0.32219431,4539.3,4539.2,7.39617262]
[1759719650889,4.31e-06,4539.3,4539.2,7.39617262]
[1759719651086,0.3159,4540.1,4540.0,0.39631]
[1759719651385,0.3159,4540.1,4540.0,4.44381]
[1759719651581,0.7385,4540.1,4540.0,3.4308]
[1759719651885,1.1348,4540.1,4540.0,3.4308]
[1759719652080,1.1368741,4540.1,4540.0,3.4308]
[1759719652277,0.7405741,4540.1,4540.0,3.82711]
[1759719653387,0.7405741,4540.1,4540.0,4.05211]
[1759719653785,0.7405741,4540.1,4540.0,3.6558]
[1759719653786,1.1368741,4540.1,4540.0,3.6558]
[1759719654191,0.7405741,4540.1,4540.0,3.4328]
[1759719654377,0.7405741,4540.1,4540.0,3.6558]
[1759719655281,0.7405741,4540.1,4540.0,3.8821]
[1759719655582,0.5258741,4540.1,4540.0,4.0475]
[1759719655775,0.5258741,4540.1,4540.0,3.8821]
[1759719656482,0.7405741,4540.1,4540.0,3.8821]
[1759719656675,0.7405741,4540.1,4540.0,3.6558]
[1759719658177,0.7405741,4540.1,4540.0,3.4308]
[1759719658576,0.7405741,4540.1,4540.0,3.2078]
[1759719658777,0.71225,4539.6,4539.5,3.2078]
[1759719659079,1.13491,4538.9,4538.7,1.18058479]
[1759719659280,1.13491,4538.9,4538.8,0.223]
[1759719660178,0.7385,4538.9,4538.8,0.6743]
[1759719660484,0.7385,4538.9,4538.8,0.448]
[1759719662187,0.7385,4538.9,4538.8,0.225]
[1759719662389,0.81902,4538.8,4538.7,0.223]
[1759719662689,1.13492,4538.8,4538.7,0.223]
[1759719662988,0.7385,4538.8,4538.7,0.223]
[1759719663884,0.1357,4539.0,4538.9,0.225]
[1759719664089,0.5583,4539.0,4538.9,0.448]
[1759719664386,0.8742,4539.0,4538.9,0.448]
[1759719664588,0.8742,4539.0,4538.9,0.223]
[1759719665381,0.8742,4539.0,4538.9,0.448]
[1759719666293,0.8742,4539.0,4538.9,0.6743]
[1759719666586,0.8742,4539.0,4538.9,0.4513]
[1759719666792,0.1357,4539.5,4538.9,0.4513]
[1759719666982,0.1357,4539.5,4538.8,0.223]
[1759719666983,0.3159,4539.4,4539.3,1.01307]
[1759719667188,0.3159,4539.4,4539.3,1.23607]
[1759719667586,0.4226,4539.9,4539.3,0.223]
[1759719667792,0.81897,4539.4,4539.3,0.448]
[1759719667990,0.7385,4539.4,4539.3,3.8821]
[1759719668292,0.8742,4540.0,4539.5,0.56175]
[1759719668494,0.71231,4538.9,4538.8,4.38838479]
[1759719668683,0.60435,4538.4,4538.3,3.2078]
[1759719668989,0.1357,4538.5,4538.2,0.225]
[1759719668990,0.7385,4538.3,4538.2,0.225]
[1759719670397,0.7385,4538.3,4538.2,0.4513]
[1759719672188,0.4516,4538.5,4538.4,0.6167]
[1759719672386,0.4516,4538.5,4538.4,4.0475]
[1759719672591,0.3159,4538.9,4538.8,0.4513]
[1759719673099,0.3159,4538.9,4538.8,1.01312]
[1759719673298,0.5238,4538.9,4538.8,0.84772]
[1759719675094,0.5238,4538.9,4538.8,1.01312]
[1759719675095,0.3159,4538.9,4538.8,1.01312]
[1759719675291,0.7385,4538.9,4538.8,0.4513]
[1759719675499,0.8742,4538.5,4538.4,5.00983479]
[1759719675695,0.8742,4538.5,4538.4,4.05225]
[1759719675895,0.8742,4538.5,4538.4,4.27855]
[1759719677991,0.6741,4538.5,4538.4,4.44345]
[1759719678196,0.6741,4538.5,4538.4,4.27855]
[1759719678399,0.8888,4538.5,4538.4,3.2078]
[1759719678798,5.8888,4538.5,4538.4,3.2078]
[1759719681597,0.7734,4537.9,4537.8,3.4308]
[1759719681802,0.7734,4537.9,4537.8,3.2078]
[1759719683107,0.4739,4538.0,4537.9,0.8321]
[1759719683301,0.6954,4538.0,4537.9,0.997]
[1759719683505,0.6954,4538.0,4537.9,0.8321]
[1759719684100,0.6954,4538.0,4537.9,0.4356]
[1759719685505,0.9101,4538.0,4537.9,0.4356]
[1759719686201,1.30659,4538.0,4537.8,3.2078]
[1759719686406,0.7734,4537.9,4537.8,3.651]
[1759719686901,0.7734,4537.9,4537.8,3.4308]
[1759719687403,0.7734,4537.9,4537.8,3.651]
[1759719688008,0.7734,4537.9,4537.8,3.8664]
[1759719689410,0.3372,4538.3,4538.2,0.4356]
[1759719689605,0.5587,4538.3,4538.2,0.4356]
[1759719689911,0.7734,4538.3,4538.2,0.4356]
[1759719692106,0.3372,4538.3,4538.2,0.6005]
[1759719692300,0.5587,4538.3,4538.2,0.4356]
[1759719692506,0.4362,4538.9,4538.8,0.83201]
[1759719692705,0.2215,4539.1,4539.0,0.39639]
[1759719692905,0.4362,4539.1,4539.0,0.4356]
[1759719693107,0.4362,4539.1,4539.0,0.2202]
[1759719693701,0.4362,4539.1,4539.0,0.7611]
[1759719693907,0.4293,4539.5,4539.4,1.14437]
[1759719694414,0.2103,4539.5,4539.4,1.14437]
[1759719695005,0.541,4539.5,4539.4,1.14437]
[1759719695201,0.0020741,4540.1,4539.7,0.39634]
[1759719695407,0.541,4540.0,4539.9,0.748]
[1759719695806,0.2103,4540.0,4539.9,0.748]
[1759719696911,0.0020741,4540.1,4540.0,0.748]
[1759719697208,0.5430741,4540.1,4540.0,0.748]
[1759719697509,0.5430741,4540.1,4540.0,1.14431]
[1759719698109,0.5430741,4540.1,4540.0,0.748]